Workbook

Sheet паспорт
A1: ПАТ "УКРТРАНСГАЗ" | M1: ПАСПОРТ ФІЗИКО-ХІМІЧНИХ ПОКАЗНИКІВ ПРИРОДНОГО ГАЗУ | T1: №656
A2: Філія УМГ"Харківтрансгаз" | I2: переданого УМГ "ХАРКІВТРАНСГАЗ" Херсонським ЛВУМГ та прийнятого ПАТ "Херсонгаз" , ТОВ "РИТЕЙЛ- КР", РВУ "Харьківавтогаз", ТОВ "ТЕК"ІТЕРА"
A3: Херсонське ЛВУМГ | J3: по газопроводу Мар'ївка-Херсон, Херсон-Крим за період з 01.03.2017 по 31.03.2017 ( точка відбору ГРС -1 Херсон)
A4: Вимірювальна хіміко-аналітична лабораторія | O4: МАРШРУТ № 656
A5: Свідоцтво про атестацію № РЧ 161/2015 дійсне до 01.01.2019 р.
A7: Число місяця | B7: Компонентний склад, мол. % | N7: Фізико-хімічні показники газу обчислені на основі компонентного складу, 101,325 кПа | X7: Температура точки роси за вологою (Р = 3.92 МПа), °С | Y7: Температура точки роси за вуглеводнями, °С | Z7: Вміст сірководню, г/м3 | AA7: Вміст меркаптанової сірки, г/м3 | AB7: Вміст механічних домішок, г/м3
N8: Густина абсолютна, кг/м3,при 20 °С, | O8: Температура вимірювання/згоряння при 20/25°С
B9: метан, С1 | C9: етан, С2 | D9: пропан, С3 | E9: ізо-бутан, і-С4 | F9: н-бутан, н-С4 | G9: нео-пентан, нео-С5 | H9: ізо-пентан, і-С5 | I9: н-пентан, н-С5 | J9: гексани та вищі, С6+ | K9: кисень, О2 | L9: азот, N2 | M9: діоксид вуглецю, CО2 | O9: Теплота згоряння нижча | R9: Теплота згоряння вища | U9: Число Воббе вище
O10: ккал/м³ | P10: МДж/м³ | Q10: кВт⋅год/м³ | R10: ккал/м³ | S10: МДж/м³ | T10: кВт⋅год/м³ | U10: ккал/м³ | V10: МДж/м³ | W10: кВт⋅год/м³
A11: 1 | B11: 96.2312 | C11: 2.0158 | D11: 0.624 | E11: 0.0953 | F11: 0.0987 | G11: <0,001 | H11: 0.0208 | I11: 0.0141 | J11: 0.0099 | K11: 0.0094 | L11: 0.7414 | M11: 0.1389 | N11: 0.6973 | O11: 8165 | P11: 34.1848 | Q11: =P11/3.6 -> 9.495777778 | R11: 9054 | S11: 37.9104 | T11: =S11/3.6 -> 10.53066667 | U11: =V11*238.8459 -> 11900.73581 | V11: 49.826 | W11: =V11/3.6 -> 13.84055556 | X11: -18.9 | Y11: -14.4
A12: 2 | B12: 95.5005 | C12: 2.3609 | D12: 0.8074 | E12: 0.1193 | F12: 0.1538 | G12: 0.001 | H12: 0.0358 | I12: 0.0285 | J12: 0.0253 | K12: 0.0092 | L12: 0.7833 | M12: 0.175 | N12: 0.7046 | O12: 8229 | P12: 34.4566 | Q12: =P12/3.6 -> 9.571277778 | R12: 9124 | S12: 38.2006 | T12: =S12/3.6 -> 10.61127778 | U12: =V12*238.8459 -> 11929.11071 | V12: 49.9448 | W12: =V12/3.6 -> 13.87355556 | X12: -16.5 | Y12: -10
A13: 3 | B13: 95.8732 | C13: 2.1864 | D13: 0.6791 | E13: 0.1021 | F13: 0.1102 | G13: <0,001 | H13: 0.0235 | I13: 0.0172 | J13: 0.0205 | K13: 0.0091 | L13: 0.8207 | M13: 0.1575 | N13: 0.7003 | O13: 8182 | P13: 34.2592 | Q13: 9.516444444 | R13: 9073 | S13: 37.9889 | T13: 10.55247222 | U13: 11899.58935 | V13: 49.8212 | W13: 13.83922222 | X13: -18.6 | Y13: -11.9 | AD13: =IF(AC13=100,"ОК"," ") -> 
A14: 4 | O14: 8182 | P14: 34.2592 | Q14: 9.516444444 | R14: 9073 | S14: 37.9889 | T14: 10.55247222 | U14: 11899.58935 | V14: 49.8212 | W14: 13.83922222 | AD14: =IF(AC14=100,"ОК"," ") -> 
A15: 5 | O15: 8182 | P15: 34.2592 | Q15: 9.516444444 | R15: 9073 | S15: 37.9889 | T15: 10.55247222 | U15: 11899.58935 | V15: 49.8212 | W15: 13.83922222
A16: 6 | B16: 95.9839 | C16: 2.1761 | D16: 0.6538 | E16: 0.0983 | F16: 0.1036 | G16: 0.0012 | H16: 0.022 | I16: 0.0152 | J16: 0.0154 | K16: 0.0095 | L16: 0.7712 | M16: 0.1497 | N16: 0.6992 | O16: 8179 | P16: 34.2449 | Q16: 9.512472222 | R16: 9070 | S16: 37.9743 | T16: 10.54841667 | U16: 11904.27073 | V16: 49.8408 | W16: 13.84466667 | X16: -18.2 | Y16: -11.8 | AB16: відсут
A17: 7 | B17: 95.9049 | C17: 2.252 | D17: 0.6662 | E17: 0.1014 | F17: 0.1067 | G17: <0,001 | H17: 0.0224 | I17: 0.0155 | J17: 0.0194 | K17: 0.0087 | L17: 0.777 | M17: 0.1517 | N17: 0.6999 | O17: 8185 | P17: 34.2722 | Q17: 9.520055556 | R17: 9077 | S17: 38.0035 | T17: 10.55652778 | U17: 11907.32796 | V17: 49.8536 | W17: 13.84822222 | X17: -17.8 | Y17: -12 | Z17: 0 | AA17: 0.0014
A18: 8 | O18: 8185 | P18: 34.2722 | Q18: 9.520055556 | R18: 9077 | S18: 38.0035 | T18: 10.55652778 | U18: 11907.32796 | V18: 49.8536 | W18: 13.84822222
A19: 9 | B19: 95.3028 | C19: 2.5056 | D19: 0.7672 | E19: 0.1131 | F19: 0.1331 | G19: 0.001 | H19: 0.032 | I19: 0.0245 | J19: 0.0321 | K19: 0.0087 | L19: 0.8988 | M19: 0.1811 | N19: 0.7052 | O19: 8219 | P19: 34.4128 | Q19: 9.559111111 | R19: 9112 | S19: 38.1522 | T19: 10.59783333 | U19: 11909.21484 | V19: 49.8615 | W19: 13.85041667 | X19: -19.8 | Y19: -12
A20: 10 | B20: 95.5771 | C20: 2.3799 | D20: 0.7395 | E20: 0.1092 | F20: 0.1222 | G20: <0,001 | H20: 0.0272 | I20: 0.0199 | J20: 0.0234 | K20: 0.0088 | L20: 0.8221 | M20: 0.17 | N20: 0.7029 | O20: 8207 | P20: 34.3623 | Q20: 9.545083333 | R20: 9099 | S20: 38.0992 | T20: 10.58311111 | U20: 11912.24819 | V20: 49.8742 | W20: 13.85394444 | X20: -16.4 | Y20: -12.2
A21: 11 | O21: 8207 | P21: 34.3623 | Q21: 9.545083333 | R21: 9099 | S21: 38.0992 | T21: 10.58311111 | U21: 11912.24819 | V21: 49.8742 | W21: 13.85394444
A22: 12 | O22: 8207 | P22: 34.3623 | Q22: 9.545083333 | R22: 9099 | S22: 38.0992 | T22: 10.58311111 | U22: 11912.24819 | V22: 49.8742 | W22: 13.85394444
A23: 13 | B23: 95.7099 | C23: 2.3408 | D23: 0.7154 | E23: 0.1092 | F23: 0.1154 | G23: <0,001 | H23: 0.0252 | I23: 0.0178 | J23: 0.018 | K23: 0.009 | L23: 0.7793 | M23: 0.1594 | N23: 0.7016 | O23: 8202 | P23: 34.3407 | Q23: 9.539083333 | R23: 9094 | S23: 38.0767 | T23: 10.57686111 | U23: 11915.61591 | V23: 49.8883 | W23: 13.85786111 | X23: -17.1 | Y23: -11.2
A24: 14 | B24: 95.6579 | C24: 2.3656 | D24: 0.7203 | E24: 0.1105 | F24: 0.1183 | G24: <0,001 | H24: 0.0258 | I24: 0.0183 | J24: 0.0228 | K24: 0.0086 | L24: 0.7861 | M24: 0.165 | N24: 0.7022 | O24: 8206 | P24: 34.3565 | Q24: 9.543472222 | R24: 9098 | S24: 38.0935 | T24: 10.58152778 | U24: 11916.23691 | V24: 49.8909 | W24: 13.85858333 | X24: -17.8 | Y24: -11.9
A25: 15 | B25: 95.3487 | C25: 2.5113 | D25: 0.7716 | E25: 0.1157 | F25: 0.1299 | G25: 0.0013 | H25: 0.0293 | I25: 0.0214 | J25: 0.0274 | K25: 0.009 | L25: 0.8527 | M25: 0.1817 | N25: 0.7048 | O25: 8221 | P25: 34.4197 | Q25: 9.561027778 | R25: 9114 | S25: 38.1601 | T25: 10.60002778 | U25: 11915.16211 | V25: 49.8864 | W25: 13.85733333 | X25: -17.4 | Y25: -11.7
A26: 16 | B26: 95.3224 | C26: 2.5367 | D26: 0.7872 | E26: 0.1196 | F26: 0.1321 | G26: 0.0012 | H26: 0.0303 | I26: 0.0225 | J26: 0.029 | K26: 0.0089 | L26: 0.8267 | M26: 0.1833 | N26: 0.7052 | O26: 8228 | P26: 34.4514 | Q26: 9.569833333 | R26: 9122 | S26: 38.1944 | T26: 10.60955556 | U26: 11922.3036 | V26: 49.9163 | W26: 13.86563889 | X26: -18 | Y26: -12
A27: 17 | B27: 95.1866 | C27: 2.6178 | D27: 0.8099 | E27: 0.122 | F27: 0.1366 | G27: 0.001 | H27: 0.0312 | I27: 0.0231 | J27: 0.0304 | K27: 0.0087 | L27: 0.8434 | M27: 0.1894 | N27: 0.7063 | O27: 8236 | P27: 34.4854 | Q27: 9.579277778 | R27: 9131 | S27: 38.2306 | T27: 10.61961111 | U27: 11924.40544 | V27: 49.9251 | W27: 13.86808333 | X27: -16.2 | Y27: -11.6
A28: 18 | O28: 8236 | P28: 34.4854 | Q28: 9.579277778 | R28: 9131 | S28: 38.2306 | T28: 10.61961111 | U28: 11924.40544 | V28: 49.9251 | W28: 13.86808333
A29: 19 | O29: 8236 | P29: 34.4854 | Q29: 9.579277778 | R29: 9131 | S29: 38.2306 | T29: 10.61961111 | U29: 11924.40544 | V29: 49.9251 | W29: 13.86808333
A30: 20 | B30: 95.171 | C30: 2.6389 | D30: 0.8106 | E30: 0.1214 | F30: 0.134 | G30: <0,001 | H30: 0.0303 | I30: 0.022 | J30: 0.0268 | K30: 0.0089 | L30: 0.8392 | M30: 0.1961 | N30: 0.7063 | O30: 8235 | P30: 34.4811 | Q30: 9.578083333 | R30: 9130 | S30: 38.2259 | T30: 10.61830556 | U30: 11923.11567 | V30: 49.9197 | W30: 13.86658333 | X30: -15.8 | Y30: -10.7 | AD30: =IF(AC30=100,"ОК"," ") -> 
A31: 21 | B31: 95.2298 | C31: 2.6192 | D31: 0.8112 | E31: 0.1228 | F31: 0.1339 | G31: 0.0012 | H31: 0.0295 | I31: 0.0213 | J31: 0.0302 | K31: 0.0086 | L31: 0.8048 | M31: 0.1875 | N31: 0.706 | O31: 8239 | P31: 34.495 | Q31: 9.581944444 | R31: 9133 | S31: 38.2414 | T31: 10.62261111 | U31: 11930.35271 | V31: 49.95 | W31: 13.875 | X31: -15.2 | Y31: -9.6 | Z31: 0 | AA31: 0.0015
A32: 22 | B32: 95.2661 | C32: 2.6009 | D32: 0.802 | E32: 0.1222 | F32: 0.1305 | G32: <0,001 | H32: 0.0281 | I32: 0.0199 | J32: 0.0227 | K32: 0.009 | L32: 0.82 | M32: 0.1778 | N32: 0.7053 | O32: 8232 | P32: 34.4671 | Q32: 9.574194444 | R32: 9126 | S32: 38.2114 | T32: 10.61427778 | U32: 11926.24456 | V32: 49.9328 | W32: 13.87022222 | X32: -14.8 | Y32: -10.2
A33: 23 | B33: 95.3985 | C33: 2.5467 | D33: 0.7984 | E33: 0.1232 | F33: 0.1301 | G33: <0,001 | H33: 0.0281 | I33: 0.02 | J33: 0.0198 | K33: 0.0089 | L33: 0.7546 | M33: 0.1711 | N33: 0.7045 | O33: 8233 | P33: 34.4721 | Q33: 9.575583333 | R33: 9128 | S33: 38.2177 | T33: 10.61602778 | U33: 11935.27293 | V33: 49.9706 | W33: 13.88072222 | X33: -15.9 | Y33: -11 | AD33: =IF(AC33=100,"ОК"," ") -> 
A34: 24 | B34: 95.4258 | C34: 2.5388 | D34: 0.7924 | E34: 0.123 | F34: 0.1296 | G34: 0.0011 | H34: 0.0277 | I34: 0.0194 | J34: 0.0206 | K34: 0.0092 | L34: 0.7419 | M34: 0.1705 | N34: 0.7043 | O34: 8233 | P34: 34.4712 | Q34: 9.575333333 | R34: 9127 | S34: 38.2168 | T34: 10.61577778 | U34: 11936.61047 | V34: 49.9762 | W34: 13.88227778 | X34: -16 | Y34: -10.6
A35: 25 | O35: 8233 | P35: 34.4712 | Q35: 9.575333333 | R35: 9127 | S35: 38.2168 | T35: 10.61577778 | U35: 11936.61047 | V35: 49.9762 | W35: 13.88227778
A36: 26 | O36: 8233 | P36: 34.4712 | Q36: 9.575333333 | R36: 9127 | S36: 38.2168 | T36: 10.61577778 | U36: 11936.61047 | V36: 49.9762 | W36: 13.88227778
A37: 27 | B37: 95.3435 | C37: 2.6594 | D37: 0.852 | E37: 0.1368 | F37: 0.1347 | G37: <0,001 | H37: 0.0258 | I37: 0.0173 | J37: 0.0134 | K37: 0.0088 | L37: 0.6298 | M37: 0.178 | N37: 0.7053 | O37: 8256 | P37: 34.5695 | Q37: 9.602638889 | R37: 9153 | S37: 38.3236 | T37: 10.64544444 | U37: 11961.88036 | V37: 50.082 | W37: 13.91166667 | X37: -23.5 | Y37: -20
A38: 28 | B38: 95.3982 | C38: 2.6307 | D38: 0.8411 | E38: 0.1353 | F38: 0.1331 | G38: <0,001 | H38: 0.026 | I38: 0.0175 | J38: 0.0122 | K38: 0.008 | L38: 0.6211 | M38: 0.1762 | N38: 0.7048 | O38: 8253 | P38: 34.5568 | Q38: 9.599111111 | R38: 9150 | S38: 38.3101 | T38: 10.64169444 | U38: 11961.45044 | V38: 50.0802 | W38: 13.91116667 | X38: -22.9 | Y38: -19 | AB38: відсут.
A39: 29 | B39: 95.3284 | C39: 2.6737 | D39: 0.855 | E39: 0.1372 | F39: 0.1351 | G39: <0,001 | H39: 0.0266 | I39: 0.0177 | J39: 0.01 | K39: 0.0083 | L39: 0.6274 | M39: 0.1799 | N39: 0.7053 | O39: 8257 | P39: 34.5728 | Q39: 9.603555556 | R39: 9154 | S39: 38.3272 | T39: =S39/3.6 -> 10.64644444 | U39: 11962.38194 | V39: 50.0841 | W39: 13.91225 | X39: -21.7 | Y39: -15.2
A40: 30 | B40: 94.3688 | C40: 3.1512 | D40: 0.8852 | E40: 0.128 | F40: 0.159 | G40: 0.0012 | H40: 0.0398 | I40: 0.0296 | J40: 0.0291 | K40: 0.0087 | L40: 0.9875 | M40: 0.212 | N40: 0.7121 | O40: 8274 | P40: 34.6448 | Q40: 9.623555556 | R40: 9171 | S40: 38.3992 | T40: =S40/3.6 -> 10.66644444 | U40: 11927.94036 | V40: 49.9399 | W40: 13.87219444 | X40: -16.9 | Y40: -11.1
A41: 31 | B41: 93.906 | C41: 3.2135 | D41: 1.0218 | E41: 0.1463 | F41: 0.1931 | G41: <0,001 | H41: 0.0483 | I41: 0.0376 | J41: 0.0595 | K41: 0.0086 | L41: 1.0478 | M41: 0.3168 | N41: 0.7178 | O41: 8305 | P41: 34.7735 | Q41: =P41/3.6 -> 9.659305556 | R41: 9203 | S41: 38.5349 | T41: 10.70413889 | U41: 11922.6141 | V41: 49.9176 | W41: 13.866 | X41: -17.1 | Y41: -10.5
A42: Рівень одоризації відповідає чинним нормативним документам | O42: =SUMPRODUCT(O11:O41,' розрахунок'!AC6:AC36)/' розрахунок'!AC37 -> 8219.547403 | P42: =SUMPRODUCT(P11:P41,' розрахунок'!AC6:AC36)/' розрахунок'!AC37 -> 34.41551386 | Q42: =SUMPRODUCT(Q11:Q41,' розрахунок'!AC6:AC36)/' розрахунок'!AC37 -> 9.55986496 | R42: =SUMPRODUCT(R11:R41,' розрахунок'!AC6:AC36)/' розрахунок'!AC37 -> 9113.041117 | S42: =SUMPRODUCT(S11:S41,' розрахунок'!AC6:AC36)/' розрахунок'!AC37 -> 38.15641807 | T42: =SUMPRODUCT(T11:T41,' розрахунок'!AC6:AC36)/' розрахунок'!AC37 -> 10.59900502
H43: Середньозважене значення теплоти згоряння:
B47: Начальник управління Херсонського ЛВУМГ Доскоч М.В. 03.04.2017
C48: Підрозділу підприємства, якому підпорядкована лабораторія | O48: прізвище | R48: підпис | V48: дата
B49: Завідувач лабораторією Камишанова О.С. 03.04.2017
C50: Лабораторія, де здійснювалось вимірювання газу | O50: прізвище | R50: підпис | V50: дата
B51: Начальник служби метрології Скавронський Є.К. 03.03.2017
C52: Підрозділу, відповідального за облік газу за маршрутом | O52: прізвище | R52: підпис | V52: дата

Sheet розрахунок (hidden)
A1: Додаток до Паспорту фізико-хімічних показників природного газу по маршруту № 656
A3: Число місяця | B3: Теплота згоряння вища, МДж/м3 | C3: Херсонська область | AC3: Загальний обсяг газу, м3
C4: Обсяг газу переданого за добу, м3
C5: ГРС Херсон -1 | D5: ГРС Херсон-2 | E5: ГРС Белозірка | F5: ГРС Станіслав | G5: ГРС Східне | H5: ГРС Садове | I5: ГРС Цюрупинск | J5: ГРС Виноградове | K5: ГРС Н.Маячка | L5: ГРС Обривки | M5: ГРС Нова Каховка | N5: ГРС Каховка | O5: ГРС Каховка (Коробки) | P5: ГРС Раздольне | Q5: ГРС Брилівка | R5: ГРС Каланчак | S5: ГРС Скадовськ | T5: ГРС Новоолександрівка | U5: ГРС Чаплинка | V5: ГРС Хрестівка | W5: ГРС Асканія Нова | X5: ГРС Асканія Нова (Тавричанка) | Y5: ГРС Червоний Чабан | Z5: ТОВ"РИТЕЙЛ-КР" | AA5: РВУ" ХАРКІВАВТОГАЗ" | AB5: ТОВ"ТЕК"ІТЕРА"
A6: 1 | B6: 37.9104 | C6: 566.412 | D6: 337.361 | E6: 57.09 | F6: 17.081 | G6: 15.832 | H6: 8.374 | I6: 127.923 | J6: 8.383 | K6: 11.495 | L6: 0 | M6: 194.621 | N6: 107.94 | O6: 0 | P6: 4.274 | Q6: 25.416 | R6: 24.072 | S6: 68.202 | T6: 6.958 | U6: 30.743 | V6: 9.412 | W6: 0 | X6: 15.151 | Y6: 7.206 | Z6: 5.65 | AA6: 0.424 | AB6: 1.841 | AC6: =SUM(C6:AB6) -> 1651.861
A7: 2 | B7: 38.2006 | C7: 553.007 | D7: 330.29 | E7: 57.271 | F7: 17.626 | G7: 15.98 | H7: 7.895 | I7: 118.079 | J7: 7.749 | K7: 10.775 | L7: 0 | M7: 186.249 | N7: 103.556 | O7: 0 | P7: 4.037 | Q7: 23.717 | R7: 21.772 | S7: 64.126 | T7: 6.268 | U7: 27.877 | V7: 8.69 | W7: 0 | X7: 13.709 | Y7: 6.487 | Z7: 6.242 | AA7: 0.464 | AB7: 1.679 | AC7: 1593.545
A8: 3 | B8: 37.9889 | C8: 548.985 | D8: 330.139 | E8: 56.402 | F8: 17.571 | G8: 15.943 | H8: 7.835 | I8: 119.49 | J8: 7.937 | K8: 10.331 | L8: 0 | M8: 175.492 | N8: 94.641 | O8: 0 | P8: 3.693 | Q8: 22.96 | R8: 21.459 | S8: 63.524 | T8: 5.787 | U8: 27.13 | V8: 8.112 | W8: 0 | X8: 13.026 | Y8: 6.447 | Z8: 6.039 | AA8: 0.54 | AB8: 1.836 | AC8: 1565.319
A9: 4 | B9: 37.9889 | C9: 525.676 | D9: 335.917 | E9: 54.192 | F9: 16.597 | G9: 15.572 | H9: 7.635 | I9: 118.387 | J9: 7.952 | K9: 10.23 | L9: 0 | M9: 171.261 | N9: 92.88 | O9: 0 | P9: 3.507 | Q9: 22.804 | R9: 20.761 | S9: 62.538 | T9: 5.606 | U9: 25.815 | V9: 7.889 | W9: 0 | X9: 12.69 | Y9: 6.264 | Z9: 4.797 | AA9: 0 | AB9: 1.477 | AC9: 1530.447
A10: 5 | B10: 37.9889 | C10: 534.341 | D10: 343.342 | E10: 56.392 | F10: 17.223 | G10: 16.299 | H10: 8.003 | I10: 119.579 | J10: 7.96 | K10: 10.561 | L10: 0 | M10: 171.996 | N10: 93.38 | O10: 0 | P10: 3.52 | Q10: 23.619 | R10: 21.249 | S10: 63.706 | T10: 6.069 | U10: 26.47 | V10: 8.042 | W10: 0 | X10: 12.624 | Y10: 6.277 | Z10: 5.313 | AA10: 0 | AB10: 1 | AC10: 1556.965
A11: 6 | B11: 37.9743 | C11: 794.33 | D11: 76.805 | E11: 53.617 | F11: 16.251 | G11: 15.626 | H11: 7.823 | I11: 127.989 | J11: 7.794 | K11: 9.983 | L11: 0 | M11: 170.76 | N11: 92.956 | O11: 0 | P11: 3.523 | Q11: 22.394 | R11: 20.358 | S11: 62.468 | T11: 5.825 | U11: 26.123 | V11: 7.633 | W11: 0 | X11: 11.942 | Y11: 6.149 | Z11: 5.303 | AA11: 0.808 | AB11: 1.303 | AC11: 1547.763
A12: 7 | B12: 38.0035 | C12: 834.509 | D12: 0 | E12: 46.39 | F12: 14.425 | G12: 13.923 | H12: 6.832 | I12: 117.192 | J12: 7.154 | K12: 9.326 | L12: 0 | M12: 153.882 | N12: 85.081 | O12: 0 | P12: 3.248 | Q12: 20.125 | R12: 18.896 | S12: 58.348 | T12: 5.196 | U12: 22.883 | V12: 7.049 | W12: 0 | X12: 11.19 | Y12: 5.593 | Z12: 6.049 | AA12: 0 | AB12: 2.149 | AC12: 1449.44
A13: 8 | B13: 38.0035 | C13: 850.918 | D13: 0 | E13: 50.589 | F13: 15.455 | G13: 16.001 | H13: 7.364 | I13: 120.363 | J13: 7.929 | K13: 10.286 | L13: 0 | M13: 168.744 | N13: 98.032 | O13: 0 | P13: 3.613 | Q13: 22.658 | R13: 21.511 | S13: 62.518 | T13: 6.144 | U13: 27.282 | V13: 8.181 | W13: 0 | X13: 12.966 | Y13: 6.639 | Z13: 5.728 | AA13: 0 | AB13: 1.434 | AC13: 1524.355
A14: 9 | B14: 38.1522 | C14: 846.374 | D14: 0 | E14: 46.753 | F14: 14.567 | G14: 14.218 | H14: 7.164 | I14: 119.075 | J14: 7.318 | K14: 9.607 | L14: 0 | M14: 162.539 | N14: 92.499 | O14: 0 | P14: 3.379 | Q14: 21.94 | R14: 20.529 | S14: 59.565 | T14: 5.967 | U14: 25.966 | V14: 7.936 | W14: 0 | X14: 12.817 | Y14: 6.376 | Z14: 5.317 | AA14: 0.906 | AB14: 1.877 | AC14: 1492.689
A15: 10 | B15: 38.0992 | C15: 852.226 | D15: 0 | E15: 51.503 | F15: 16.303 | G15: 14.689 | H15: 7.491 | I15: 128.16 | J15: 7.999 | K15: 10.542 | L15: 0 | M15: 167.375 | N15: 96.461 | O15: 0 | P15: 3.594 | Q15: 23.738 | R15: 23.053 | S15: 66.697 | T15: 6.776 | U15: 28.897 | V15: 8.529 | W15: 0 | X15: 13.44 | Y15: 7.49 | Z15: 6.024 | AA15: 0.822 | AB15: 1.709 | AC15: 1543.518
A16: 11 | B16: 38.0992 | C16: 865.337 | D16: 0 | E16: 52.15 | F16: 16.888 | G16: 15.633 | H16: 7.808 | I16: 135.066 | J16: 8.347 | K16: 11.307 | L16: 0 | M16: 175.769 | N16: 99.241 | O16: 0 | P16: 3.838 | Q16: 25.453 | R16: 24.078 | S16: 69.701 | T16: 6.88 | U16: 29.434 | V16: 9.007 | W16: 0 | X16: 14.271 | Y16: 7.72 | Z16: 4.613 | AA16: 0 | AB16: 1.312 | AC16: 1583.853
A17: 12 | B17: 38.0992 | C17: 881.625 | D17: 0 | E17: 53.424 | F17: 17.618 | G17: 16.367 | H17: 7.869 | I17: 132.272 | J17: 8.158 | K17: 10.842 | L17: 0 | M17: 179.297 | N17: 99.837 | O17: 0 | P17: 3.94 | Q17: 24.332 | R17: 23.133 | S17: 69.7 | T17: 7.185 | U17: 29.474 | V17: 8.883 | W17: 0 | X17: 13.964 | Y17: 7.436 | Z17: 5.242 | AA17: 0 | AB17: 1.226 | AC17: 1601.824
A18: 13 | B18: 38.0767 | C18: 853.052 | D18: 0 | E18: 51.548 | F18: 15.906 | G18: 14.786 | H18: 7.475 | I18: 126.938 | J18: 7.431 | K18: 9.859 | L18: 0 | M18: 169.715 | N18: 91.59 | O18: 0 | P18: 3.605 | Q18: 22.746 | R18: 20.918 | S18: 63.889 | T18: 6.851 | U18: 25.851 | V18: 7.918 | W18: 0 | X18: 12.381 | Y18: 6.965 | Z18: 5.88 | AA18: 0.917 | AB18: 1.42 | AC18: 1527.641
A19: 14 | B19: 38.0935 | C19: 871.83 | D19: 0 | E19: 54.735 | F19: 17.908 | G19: 15.232 | H19: 7.809 | I19: 129.067 | J19: 7.536 | K19: 11.067 | L19: 0 | M19: 170.131 | N19: 97.521 | O19: 0 | P19: 3.852 | Q19: 23.999 | R19: 23.02 | S19: 66.28 | T19: 7.424 | U19: 28.03 | V19: 8.235 | W19: 0 | X19: 12.902 | Y19: 7.27 | Z19: 6.743 | AA19: 0.799 | AB19: 2.149 | AC19: 1573.539
A20: 15 | B20: 38.1601 | C20: 843.601 | D20: 0 | E20: 50.374 | F20: 15.636 | G20: 14.274 | H20: 7.498 | I20: 122.3 | J20: 7.077 | K20: 10.458 | L20: 0 | M20: 174.728 | N20: 98.837 | O20: 0 | P20: 3.678 | Q20: 22.532 | R20: 20.906 | S20: 61.571 | T20: 6.702 | U20: 26.282 | V20: 7.933 | W20: 0 | X20: 12.833 | Y20: 6.609 | Z20: 5.676 | AA20: 0.595 | AB20: 1.877 | AC20: 1521.977
A21: 16 | B21: 38.1944 | C21: 849.735 | D21: 0 | E21: 53.605 | F21: 15.906 | G21: 14.873 | H21: 7.824 | I21: 127.509 | J21: 7.561 | K21: 10.671 | L21: 0 | M21: 175.776 | N21: 99.727 | O21: 0 | P21: 3.605 | Q21: 23.084 | R21: 20.711 | S21: 61.687 | T21: 6.88 | U21: 26.898 | V21: 8.152 | W21: 0 | X21: 13.016 | Y21: 6.646 | Z21: 6.172 | AA21: 0.455 | AB21: 2.021 | AC21: 1542.514
A22: 17 | B22: 38.2306 | C22: 862.625 | D22: 0 | E22: 55.161 | F22: 17.481 | G22: 15.13 | H22: 8.208 | I22: 127.804 | J22: 8.28 | K22: 11.083 | L22: 0 | M22: 180.285 | N22: 102.773 | O22: 0 | P22: 3.84 | Q22: 24.077 | R22: 21.841 | S22: 65.813 | T22: 7.084 | U22: 27.733 | V22: 8.226 | W22: 0 | X22: 13.041 | Y22: 7.237 | Z22: 5.929 | AA22: 0.699 | AB22: 2.779 | AC22: 1577.129
A23: 18 | B23: 38.2306 | C23: 872.245 | D23: 0 | E23: 59.32 | F23: 17.805 | G23: 17.148 | H23: 8.531 | I23: 131.435 | J23: 8.293 | K23: 11.486 | L23: 0 | M23: 178.042 | N23: 99.873 | O23: 0 | P23: 3.921 | Q23: 24.498 | R23: 21.819 | S23: 66.376 | T23: 7.046 | U23: 27.027 | V23: 8.326 | W23: 0 | X23: 13.03 | Y23: 7.054 | Z23: 4.759 | AA23: 0 | AB23: 1.441 | AC23: 1589.475
A24: 19 | B24: 38.2306 | C24: 864.095 | D24: 0 | E24: 56.704 | F24: 16.601 | G24: 16.583 | H24: 8.176 | I24: 128.179 | J24: 7.947 | K24: 10.952 | L24: 0 | M24: 178.516 | N24: 100.251 | O24: 0 | P24: 3.922 | Q24: 24.264 | R24: 22.236 | S24: 66.039 | T24: 6.66 | U24: 28.131 | V24: 8.541 | W24: 0 | X24: 13.8 | Y24: 7.208 | Z24: 4.463 | AA24: 0 | AB24: 1.174 | AC24: 1574.442
A25: 20 | B25: 38.2259 | C25: 884.624 | D25: 0 | E25: 58.494 | F25: 16.992 | G25: 16.014 | H25: 8.281 | I25: 132.992 | J25: 8.09 | K25: 11.304 | L25: 0 | M25: 185.865 | N25: 103.188 | O25: 0 | P25: 3.62 | Q25: 25.047 | R25: 23.243 | S25: 68.785 | T25: 7.811 | U25: 29.577 | V25: 9.096 | W25: 0 | X25: 14.143 | Y25: 7.689 | Z25: 5.67 | AA25: 0.65 | AB25: 1.596 | AC25: 1622.771
A26: 21 | B26: 38.2414 | C26: 825.554 | D26: 0 | E26: 51.255 | F26: 14.905 | G26: 13.714 | H26: 7.196 | I26: 118.799 | J26: 7.028 | K26: 9.789 | L26: 0 | M26: 167.511 | N26: 92.616 | O26: 0 | P26: 3.427 | Q26: 21.886 | R26: 20.323 | S26: 60.557 | T26: 6.266 | U26: 25.677 | V26: 7.744 | W26: 0 | X26: 12.874 | Y26: 6.397 | Z26: 6.326 | AA26: 0.745 | AB26: 2.144 | AC26: 1482.733
A27: 22 | B27: 38.2114 | C27: 767.716 | D27: 0 | E27: 46.192 | F27: 14.361 | G27: 13.17 | H27: 6.746 | I27: 109.5 | J27: 6.559 | K27: 8.905 | L27: 0 | M27: 152.082 | N27: 83.814 | O27: 0 | P27: 3.028 | Q27: 20.426 | R27: 18.654 | S27: 57.088 | T27: 5.263 | U27: 23.483 | V27: 6.949 | W27: 0 | X27: 11.295 | Y27: 5.779 | Z27: 6.659 | AA27: 0 | AB27: 1.82 | AC27: 1369.489
A28: 23 | B28: 38.2177 | C28: 733.951 | D28: 0 | E28: 43.847 | F28: 13.573 | G28: 12.24 | H28: 6.257 | I28: 104.666 | J28: 6.147 | K28: 8.267 | L28: 0 | M28: 142.053 | N28: 77.364 | O28: 0 | P28: 2.749 | Q28: 18.946 | R28: 17.049 | S28: 53.197 | T28: 4.811 | U28: 21.029 | V28: 6.289 | W28: 0 | X28: 10.392 | Y28: 5.389 | Z28: 6.591 | AA28: 0.588 | AB28: 1.764 | AC28: 1297.159
A29: 24 | B29: 38.2168 | C29: 726.788 | D29: 0 | E29: 43.914 | F29: 13.633 | G29: 13.728 | H29: 6.403 | I29: 102.474 | J29: 6.091 | K29: 8.364 | L29: 0 | M29: 138.376 | N29: 76.484 | O29: 0 | P29: 2.67 | Q29: 18.719 | R29: 17.234 | S29: 52.473 | T29: 4.845 | U29: 21.012 | V29: 6.442 | W29: 0 | X29: 9.88 | Y29: 5.502 | Z29: 6.094 | AA29: 0.538 | AB29: 2 | AC29: 1283.664
A30: 25 | B30: 38.2168 | C30: 680.668 | D30: 0 | E30: 41.42 | F30: 12.698 | G30: 12.658 | H30: 6.104 | I30: 92.683 | J30: 5.746 | K30: 8.265 | L30: 0 | M30: 132.644 | N30: 73.088 | O30: 0 | P30: 2.531 | Q30: 17.632 | R30: 16.138 | S30: 48.799 | T30: 4.402 | U30: 19.03 | V30: 6.037 | W30: 0 | X30: 9.618 | Y30: 5.148 | Z30: 4.646 | AA30: 0 | AB30: 1.665 | AC30: 1201.62
A31: 26 | B31: 38.2168 | C31: 752.555 | D31: 0 | E31: 50.063 | F31: 15.026 | G31: 14.199 | H31: 7.096 | I31: 114.984 | J31: 7.037 | K31: 9.333 | L31: 0 | M31: 145.636 | N31: 86.443 | O31: 0 | P31: 2.955 | Q31: 21.632 | R31: 19.975 | S31: 60.313 | T31: 5.859 | U31: 24.695 | V31: 7.338 | W31: 0 | X31: 11.586 | Y31: 6.416 | Z31: 5.06 | AA31: 0 | AB31: 0.84 | AC31: 1369.041
A32: 27 | B32: 38.3236 | C32: 807.425 | D32: 0 | E32: 52.589 | F32: 15.676 | G32: 15.384 | H32: 7.662 | I32: 120.931 | J32: 7.315 | K32: 10.291 | L32: 0 | M32: 158.316 | N32: 94.153 | O32: 0 | P32: 3.269 | Q32: 22.769 | R32: 21.159 | S32: 62.026 | T32: 6.074 | U32: 26.516 | V32: 8.197 | W32: 0 | X32: 13.276 | Y32: 7.162 | Z32: 5.262 | AA32: 0.01 | AB32: 1.771 | AC32: 1467.233
A33: 28 | B33: 38.3101 | C33: 730.128 | D33: 0 | E33: 43.895 | F33: 13.092 | G33: 13.098 | H33: 6.342 | I33: 101.74 | J33: 6.181 | K33: 8.608 | L33: 0 | M33: 137.986 | N33: 79.31 | O33: 0 | P33: 2.724 | Q33: 19.047 | R33: 18.142 | S33: 54.679 | T33: 5.121 | U33: 23.386 | V33: 6.971 | W33: 0 | X33: 11.31 | Y33: 6.07 | Z33: 7.147 | AA33: 0.389 | AB33: 2.293 | AC33: 1297.659
A34: 29 | B34: 38.3272 | C34: 675.736 | D34: 0 | E34: 36.684 | F34: 11.265 | G34: 10.793 | H34: 5.188 | I34: 86.423 | J34: 5.39 | K34: 7.008 | L34: 0 | M34: 123.458 | N34: 68.027 | O34: 0 | P34: 2.237 | Q34: 16.37 | R34: 15.2 | S34: 47.315 | T34: 4.329 | U34: 19.297 | V34: 5.94 | W34: 0 | X34: 9.378 | Y34: 5.213 | Z34: 6.267 | AA34: 0.29 | AB34: 2.145 | AC34: 1163.953
A35: 30 | B35: 38.3992 | C35: 674.177 | D35: 0 | E35: 38.302 | F35: 11.737 | G35: 11.42 | H35: 5.568 | I35: 88.85 | J35: 5.366 | K35: 7.44 | L35: 0 | M35: 112.987 | N35: 68.182 | O35: 0 | P35: 2.383 | Q35: 16.79 | R35: 15.273 | S35: 46.304 | T35: 4.502 | U35: 19.956 | V35: 5.948 | W35: 0 | X35: 9.612 | Y35: 5.103 | Z35: 6.917 | AA35: 0.494 | AB35: 2.388 | AC35: 1159.699
A36: 31 | B36: 38.53 | C36: =497.55+0.124 -> 497.674 | D36: 0 | E36: 40.334 | F36: 12.834 | G36: 11.892 | H36: 5.838 | I36: 94.504 | J36: 6.003 | K36: 8.48 | L36: 0 | M36: 120.335 | N36: 62.583 | O36: 0 | P36: 2.569 | Q36: 18.955 | R36: 17.488 | S36: 51.046 | T36: 5.097 | U36: 21.948 | V36: 7.12 | W36: 0 | X36: 10.624 | Y36: 5.929 | Z36: 6.383 | AA36: 0.604 | AB36: =2.204+0.088 -> 2.292 | AC36: 1010.532
A37: Загальний обсяг газу, м3 | B37: 38.3272 | C37: =SUM(C6:C36) -> 23427.919 | D37: =SUM(D6:D36) -> 1753.854 | E37: 1564.209 | F37: 480.64 | G37: 452.419 | H37: 226.295 | I37: 3645.353 | J37: 225.758 | K37: 306.915 | L37: 0 | M37: 5022.427 | N37: 2812.328 | O37: 0 | P37: 104.751 | Q37: 682.575 | R37: 632.2 | S37: 1885.33 | T37: 187.688 | U37: 793.652 | V37: 240.765 | W37: 0 | X37: 382.781 | Y37: 200.87 | Z37: 178.961 | AA37: 11.737 | AB37: 54.422 | AC37: 45273.849
A38: Енергія, МДж | C38: =SUMPRODUCT(B6:B36,C6:C36) -> 894153.0895 | D38: =SUMPRODUCT(B6:B36,D6:D36) -> 66669.30242 | E38: =SUMPRODUCT(B6:B36,E6:E36) -> 59686.7046 | F38: =SUMPRODUCT(B6:B36,F6:F36) -> 18339.85357 | G38: =SUMPRODUCT(B6:B36,G6:G36) -> 17263.28797 | H38: =SUMPRODUCT(B6:B36,H6:H36) -> 8634.896879 | I38: =SUMPRODUCT(B6:B36,I6:I36) -> 139098.4903 | J38: =SUMPRODUCT(B6:B36,J6:J36) -> 8613.983377 | K38: =SUMPRODUCT(B6:B36,K6:K36) -> 11711.32735 | L38: =SUMPRODUCT(B6:B36,L6:L36) -> 0 | M38: =SUMPRODUCT(B6:B36,M6:M36) -> 191633.6899 | N38: =SUMPRODUCT(B6:B36,N6:N36) -> 107308.4014 | O38: =SUMPRODUCT(B6:B36,O6:O36) -> 0 | P38: =SUMPRODUCT(B6:B36,P6:P36) -> 3996.641367 | Q38: =SUMPRODUCT(B6:B36,Q6:Q36) -> 26045.98149 | R38: =SUMPRODUCT(B6:B36,R6:R36) -> 24123.33387 | S38: =SUMPRODUCT(B6:B36,S6:S36) -> 71941.05897 | T38: =SUMPRODUCT(B6:B36,T6:T36) -> 7162.054617 | U38: =SUMPRODUCT(B6:B36,U6:U36) -> 30284.25611 | V38: =SUMPRODUCT(B6:B36,V6:V36) -> 9187.371847 | W38: =SUMPRODUCT(B6:B36,W6:W36) -> 0 | X38: =SUMPRODUCT(B6:B36,X6:X36) -> 14606.47401 | Y38: =SUMPRODUCT(B6:B36,Y6:Y36) -> 7665.589341 | Z38: =SUMPRODUCT(B6:B36,Z6:Z36) -> 6831.247729 | AA38: =SUMPRODUCT(B6:B36,AA6:AA36) -> 448.051107 | AB38: =SUMPRODUCT(B6:B36,AB6:AB36) -> 2077.870708 | AC38: =SUMPRODUCT(B6:B36,AC6:AC36) -> 1727482.958
A39: Теплота згоряння (середньозважене значення за місяць), МДж/м³ | C39: =C38/C37 -> 38.16613373 | D39: 38.01302869 | E39: 38.15775552 | F39: 38.15715208 | G39: 38.15774308 | H39: 38.15770069 | I39: 38.157756 | J39: 38.15582782 | K39: 38.15821106 | M39: 38.15559488 | N39: 38.15643174 | P39: 38.15372996 | Q39: 38.15841701 | R39: 38.15775683 | S39: 38.15833778 | T39: 38.1593635 | U39: 38.1581047 | V39: 38.15908395 | X39: 38.15882713 | Y39: 38.16194226 | Z39: 38.17171187 | AA39: 38.17424444 | AB39: 38.18071199 | AC39: =AC38/AC37 -> 38.1563087
A40: Теплота згоряння (середньозважене значення за місяць), ккал/м³ | C40: =C39*238.8459 -> 9115.824559 | D40: =D39*238.8459 -> 9079.256049 | E40: 9113.823458 | F40: 9113.679329 | G40: 9113.820487 | H40: 9113.810364 | I40: 9113.823575 | J40: 9113.363036 | K40: 9113.932263 | M40: 9113.307399 | N40: 9113.50728 | P40: 9112.861971 | Q40: 9113.981453 | R40: 9113.823771 | S40: 9113.96253 | T40: 9114.207518 | U40: 9113.906858 | V40: 9114.140749 | X40: 9114.079409 | Y40: 9114.823444 | Z40: 9117.156877 | AA40: 9117.76177 | AB40: 9119.306518 | AC40: 9113.477892
A41: Теплота згоряння (середньозважене значення за місяць), кВт*год./м³ | C41: =C39/3.6 -> 10.60170381 | D41: =D39/3.6 -> 10.55917464 | E41: 10.59937653 | F41: 10.59920891 | G41: 10.59937308 | H41: 10.5993613 | I41: 10.59937667 | J41: 10.59884106 | K41: 10.59950307 | M41: 10.59877635 | N41: 10.59900882 | P41: 10.59825832 | Q41: 10.59956028 | R41: 10.5993769 | S41: 10.59953827 | T41: 10.59982319 | U41: 10.59947353 | V41: 10.59974554 | X41: 10.5996742 | Y41: 10.60053952 | Z41: 10.6032533 | AA41: 10.60395679 | AB41: 10.60575333 | AC41: 10.59897464

Sheet додаток
A1: Додаток до Паспорту фізико-хімічних показників природного газу № 656
A3: Область | B3: ГРС, прямий споживач | C3: Cередньозважене значення вищої теплоти згоряння
C4: МДж/м³ | D4: ккал/м³ | E4: кВт*год./м³
A5: Херсонська область | B5: ГРС-1 Херсон | C5: 38.17 | D5: 9116 | E5: 10.6
B6: ГРС-2 Херсон | C6: 38.01 | D6: 9079 | E6: 10.56
B7: ГРС Белозірка | C7: 38.16 | D7: 9114 | E7: 10.6
B8: ГРС Станіслав | C8: 38.16 | D8: 9114 | E8: 10.6
B9: ГРС Східне | C9: 38.16 | D9: 9114 | E9: 10.6
B10: ГРС Садове | C10: 38.16 | D10: 9114 | E10: 10.6
B11: ГРС Цюрупинск | C11: 38.16 | D11: 9114 | E11: 10.6
B12: ГРС Виноградове | C12: 38.16 | D12: 9113 | E12: 10.6
B13: ГРС Нова Маячка | C13: 38.16 | D13: 9114 | E13: 10.6
B14: ГРС Обривки | C14: 0 | D14: 0 | E14: 0
B15: ГРС Нова Каховка | C15: 38.16 | D15: 9113 | E15: 10.6
B16: ГРС Каховка (Лінія Каховка) | C16: 38.16 | D16: 9114 | E16: 10.6
B17: ГРС Каховка (лІнія Коробки) | C17: 0 | D17: 0 | E17: 0
B18: ГРС Раздольне | C18: 38.15 | D18: 9113 | E18: 10.6
B19: ГРС Брилівка | C19: 38.15 | D19: 9114 | E19: 10.6
B20: ГРС Каланчак | C20: 38.15 | D20: 9114 | E20: 10.6
B21: ГРС Скадовськ | C21: 38.15 | D21: 9114 | E21: 10.6
B22: ГРС Новоолександрівка | C22: 38.15 | D22: 9114 | E22: 10.6
B23: ГРС Чаплинка | C23: 38.15 | D23: 9114 | E23: 10.6
B24: ГРС Хрестівка | C24: 38.15 | D24: 9114 | E24: 10.6
B25: ГРС Асканія Нова | C25: 0 | D25: 0 | E25: 0
B26: ГРС Асканія Нова (Тавричанка) | C26: 38.16 | D26: 9114 | E26: 10.6
B27: ГРС Червоний Чабан | C27: 38.16 | D27: 9115 | E27: 10.6
B28: ТОВ " РИТЕЙЛ - КР" | C28: 38.17 | D28: 9117 | E28: 10.6
B29: РВУ " ХАРКІВАВТОГАЗ" | C29: 38.17 | D29: 9118 | E29: 10.6
B30: ТОВ"ТЕК" ІТЕРА" | C30: 38.18 | D30: 9119 | E30: 10.61
A31: Середньозважене значення вищої теплоти згоряння по маршруту № 656 | C31: 38.16 | D31: 9113 | E31: 10.6
A35: Начальник управління Херсонського ЛВУМГ Доскоч М.В. | F35: 2017-04-03
A36: Підрозділу підприємства, якому підпорядкована лабораторія | D36: прізвище | E36: підпис | F36: дата
A37: Завідувач лабораторії Камишанова О.С. | F37: 2017-04-03
A38: Лабораторія, де здійснювалось вимірювання газу | D38: прізвище | E38: підпис | F38: дата
A39: Начальник служби ГВ та М Скавронський Є.К. | F39: 2017-04-03
A40: Підрозділу, відповідального за облік газу за маршрутом | D40: прізвище | E40: підпис | F40: дата

Sheet variablesList (hidden)
A1: 3 | B1: x:\gaysin | C1: 10, 11, 24, 25, 127, 128, 132, 180, 207, 215 | D1: x:\
B2: x:\Illinci
B3: x:\Talne
